fUSD/lending_fUSD_20241215
["ID","MTS","AMOUNT","RATE_DAILY","PERIOD"]
[345466962,1734275454622,-200.0,0.00019957,2]
[345466963,1734275454631,-165.811826,0.00019957,2]
[345466964,1734275454640,-247.585747,0.00019957,2]
[345466965,1734275454649,-175.439757,0.00019957,2]
[345466966,1734275454660,-247.585747,0.00019957,2]
[345466967,1734275454670,-175.439757,0.00019957,2]
[345466968,1734275454679,-151.0,0.00019957,2]
[345466969,1734275454690,-400.0,0.0001997,2]
[345466970,1734275454700,-300.80998141,0.0001997,2]
[345466971,1734275454710,-738.78,0.00019971,3]
[345466972,1734275454721,-500.0,0.00019971,3]
[345466973,1734275454731,-500.0,0.00019971,3]
[345466974,1734275454741,-790.13,0.00019971,3]
[345466975,1734275454751,-1032.56,0.00019971,3]
[345466976,1734275454760,-585.26,0.00019971,3]
[345466977,1734275454770,-500.0,0.00019971,3]
[345466978,1734275454886,-470.71,0.00019971,3]
[345466979,1734275454908,-500.0,0.00019971,3]
[345466980,1734275454918,-500.0,0.00019971,3]
[345466981,1734275454927,-500.0,0.00019971,3]
[345466982,1734275454937,-528.88,0.00019971,3]
[345466983,1734275454946,-504.36,0.00019971,3]
[345466984,1734275454956,-566.0,0.00019971,3]
[345466985,1734275454965,-633.44,0.00019971,3]
[345466986,1734275454978,-1501.23,0.00019971,3]
[345466987,1734275454987,-500.0,0.00019971,3]
[345466988,1734275454997,-500.0,0.00019971,3]
[345466989,1734275455009,-500.0,0.00019971,3]
[345466990,1734275455018,-500.0,0.00019971,3]
[345466991,1734275455027,-550.04,0.00019971,3]
[345466992,1734275455037,-500.0,0.00019971,3]
[345466993,1734275455046,-1078.5,0.00019971,3]
[345466994,1734275455056,-996.23,0.00019971,3]
[345466995,1734275455066,-1029.07,0.00019971,3]
[345466996,1734275455075,-151.0,0.00019972,2]
[345466997,1734275455084,-152.266563,0.00019972,2]
[345466998,1734275455094,-500.0,0.00019972,2]
[345466999,1734275455103,-500.0,0.00019972,3]
[345467000,1734275455112,-986.6,0.00019972,3]
[345467001,1734275455122,-500.0,0.00019972,3]
[345467002,1734275455131,-500.0,0.00019972,3]
[345467003,1734275455141,-500.0,0.00019972,3]
[345467004,1734275455150,-500.0,0.00019972,3]
[345467005,1734275455160,-476.48,0.00019972,3]
[345467006,1734275455170,-500.0,0.00019972,3]
[345467007,1734275455179,-982.499852,0.00019972,2]
[345467008,1734275455189,-982.499852,0.00019972,2]
[345467009,1734275455199,-325.849368,0.00019972,2]
[345467010,1734275455208,-325.849368,0.00019972,2]
[345467011,1734275455218,-739.7,0.00019972,3]
[345467012,1734275455228,-2284.183275,0.00019972,2]
[345467013,1734275455238,-2284.183275,0.00019972,2]
[345467014,1734275455248,-500.0,0.00019972,3]
[345467015,1734275455258,-500.0,0.00019972,3]
[345467016,1734275455267,-500.0,0.00019972,3]
[345467017,1734275455275,-2581.38,0.00019972,3]
[345467018,1734275455285,-1205.16,0.00019972,3]
[345467019,1734275455295,-500.0,0.00019972,3]
[345467020,1734275455305,-500.0,0.00019972,3]
[345467021,1734275455315,-500.0,0.00019972,3]
[345467022,1734275455324,-637.91,0.00019972,3]
[345467023,1734275455334,-500.0,0.00019972,3]
[345467024,1734275455343,-500.0,0.00019972,3]
[345467025,1734275455353,-500.0,0.00019972,3]
[345467026,1734275455363,-500.0,0.00019972,3]
[345467027,1734275455372,-500.0,0.00019972,3]
[345467028,1734275455381,-500.0,0.00019972,3]
[345467029,1734275455390,-633.71,0.00019972,3]
[345467030,1734275455400,-426.36,0.00019972,3]
[345467031,1734275455410,-592.92,0.00019972,3]
[345467032,1734275455419,-500.0,0.00019972,3]
[345467033,1734275455429,-500.0,0.00019972,3]
[345467034,1734275455439,-290.54,0.00019972,3]
[345467035,1734275455450,-500.0,0.00019972,3]
[345467036,1734275455460,-656.62,0.00019972,3]
[345467037,1734275455472,-923.65,0.00019972,3]
[345467038,1734275455481,-500.0,0.00019972,3]
[345467039,1734275455490,-500.0,0.00019972,3]
[345467040,1734275455499,-1000.0,0.00019972,2]
[345467041,1734275455509,-271.08085515,0.00019973,4]
[345467042,1734275455518,-276.19922079,0.00019973,4]
[345467043,1734275455530,-281.82049322,0.00019973,4]
[345467044,1734275455539,-19455.0,0.00019973,2]
[345467045,1734275455550,-150.0,0.00019973,4]
[345467046,1734275455560,-150.0,0.00019973,4]
[345467047,1734275455570,-500.0,0.00019973,2]
[345467048,1734275455580,-181.59047638,0.00019973,2]
[345467049,1734275455589,-504.21186642,0.00019973,2]
[345467050,1734275455599,-153.25,0.00019993,3]
[345467051,1734275455610,-500.0,0.00019993,3]
[345467052,1734275455623,-580.27,0.00019993,3]
[345467053,1734275455632,-500.0,0.00019993,3]
[345467054,1734275455642,-1500.0,0.00019994,2]
[345467055,1734275455653,-500.0,0.00019994,3]
[345467056,1734275455662,-500.0,0.00019994,3]
[345467057,1734275455671,-500.0,0.00019994,3]
[345467058,1734275455681,-500.0,0.00019994,3]
[345467059,1734275455691,-762.22,0.00019994,3]
[345467060,1734275455700,-500.0,0.00019994,3]
[345467061,1734275455709,-500.0,0.00019994,3]
[345467062,1734275455718,-500.0,0.00019994,3]
[345467063,1734275455732,-656.59,0.00019994,3]
[345467064,1734275455740,-1050.92,0.00019994,3]
[345467065,1734275455749,-1281.49,0.00019994,3]
[345467066,1734275455759,-500.0,0.00019994,3]
[345467067,1734275455767,-500.0,0.00019994,3]
[345467068,1734275455777,-1202.85,0.00019994,3]
[345467069,1734275455787,-4395.43,0.00019994,3]
[345467070,1734275455795,-500.0,0.00019994,3]
[345467071,1734275455805,-80048.86983457,0.00019995,2]
[345467072,1734275455814,-151.0,0.00019995,2]
[345467073,1734275455823,-151.0,0.00019995,2]
[345467074,1734275455832,-247.585747,0.00019995,2]
[345467075,1734275455841,-175.439757,0.00019995,2]
[345467076,1734275455851,-247.585747,0.00019995,2]
[345467077,1734275455860,-175.439757,0.00019995,2]
[345467078,1734275455870,-151.0,0.00019995,2]
[345467079,1734275455879,-151.0,0.00019995,2]
[345467080,1734275455888,-151.0,0.00019995,2]
[345467081,1734275455897,-184.477903,0.00019995,2]
[345467082,1734275455907,-184.477903,0.00019995,2]
[345467083,1734275455916,-151.0,0.00019995,2]
[345467084,1734275455926,-369.630023,0.00019995,2]
[345467085,1734275455935,-369.630023,0.00019995,2]
[345467086,1734275455944,-151.0,0.00019995,2]
[345467087,1734275455953,-159.703744,0.00019995,2]
[345467088,1734275455962,-151.0,0.00019995,2]
[345467089,1734275455974,-151.0,0.00019995,2]
[345467090,1734275455983,-158.94199,0.00019995,2]
[345467091,1734275455993,-158.94199,0.00019995,2]
[345467092,1734275456002,-151.0,0.00019995,2]
[345467093,1734275456011,-705.896266,0.00019995,2]
[345467094,1734275456022,-865.390244,0.00019995,2]
[345467095,1734275456032,-865.390244,0.00019995,2]
[345467096,1734275456043,-151.0,0.00019995,2]
[345467097,1734275456054,-982.499852,0.00019995,2]
[345467098,1734275456063,-982.499852,0.00019995,2]
[345467099,1734275456073,-325.849368,0.00019995,2]
[345467100,1734275456082,-325.849368,0.00019995,2]
[345467101,1734275456092,-2284.183275,0.00019995,2]
[345467102,1734275456101,-2284.183275,0.00019995,2]
[345467103,1734275456111,-255.974318,0.00019995,2]
[345467104,1734275456120,-255.974318,0.00019995,2]
[345467105,1734275456129,-201.25817,0.00019995,2]
[345467106,1734275456139,-201.25817,0.00019995,2]
[345467107,1734275456147,-244.182832,0.00019995,2]
[345467108,1734275456157,-1099.021982,0.00019995,2]
[345467109,1734275456167,-1099.021982,0.00019995,2]
[345467110,1734275456177,-9000.0,0.00019995,2]
[345467111,1734275456187,-9000.0,0.00019995,2]
[345467112,1734275456197,-151.0,0.00019995,2]
[345467113,1734275456208,-151.0,0.00019995,2]
[345467114,1734275456219,-220.05164,0.00019995,2]
[345467115,1734275456229,-172.033086,0.00019995,2]
[345467116,1734275456239,-172.033086,0.00019995,2]
[345467117,1734275456250,-151.0,0.00019995,2]
[345467118,1734275456260,-511.194057,0.00019995,2]
[345467119,1734275456269,-511.194057,0.00019995,2]
[345467120,1734275456279,-198.211008,0.00019995,2]
[345467121,1734275456288,-554.8559047,0.00019996,2]
[345467122,1734275456297,-585.1562891,0.00019996,2]
[345467123,1734275456306,-255.6309741,0.00019996,2]
[345467124,1734275456316,-500.0,0.00019997,2]
[345467125,1734275456325,-500.0,0.00019997,3]
[345467126,1734275456335,-500.0,0.00019997,3]
[345467127,1734275456344,-986.6,0.00019997,3]
[345467128,1734275456353,-500.0,0.00019997,3]
[345467129,1734275456362,-500.0,0.00019997,3]
[345467130,1734275456371,-500.0,0.00019997,3]
[345467131,1734275456380,-235.85,0.00019997,3]
[345467132,1734275456389,-500.0,0.00019997,3]
[345467133,1734275456399,-603.70011258,0.00019997,3]
[345467134,1734275456408,-500.0,0.00019997,3]
[345467135,1734275456418,-580.27,0.00019997,3]
[345467136,1734275456427,-500.0,0.00019997,3]
[345467137,1734275456437,-738.78,0.00019997,3]
[345467138,1734275456446,-500.0,0.00019997,3]
[345467139,1734275456456,-500.0,0.00019997,3]
[345467140,1734275456466,-500.0,0.00019997,3]
[345467141,1734275456481,-739.7,0.00019997,3]
[345467142,1734275456491,-790.13,0.00019997,3]
[345467143,1734275456501,-1032.56,0.00019997,3]
[345467144,1734275456511,-500.0,0.00019997,3]
[345467145,1734275456520,-500.0,0.00019997,3]
[345467146,1734275456530,-500.0,0.00019997,3]
[345467147,1734275456540,-500.0,0.00019997,3]
[345467148,1734275456549,-500.0,0.00019997,3]
[345467149,1734275456559,-500.0,0.00019997,3]
[345467150,1734275456568,-2581.38,0.00019997,3]
[345467151,1734275456578,-762.22,0.00019997,3]
[345467152,1734275456588,-500.0,0.00019997,3]
[345467153,1734275456598,-500.0,0.00019997,3]
[345467154,1734275456608,-500.0,0.00019997,3]
[345467155,1734275456622,-1205.16,0.00019997,3]
[345467156,1734275456631,-500.0,0.00019997,3]
[345467157,1734275456641,-528.88,0.00019997,3]
[345467158,1734275456650,-504.36,0.00019997,3]
[345467159,1734275456660,-500.0,0.00019997,3]
[345467160,1734275456670,-500.0,0.00019997,3]
[345467161,1734275456679,-500.0,0.00019997,3]
[345467162,1734275456689,-500.0,0.00019997,3]
[345467163,1734275456699,-566.0,0.00019997,3]
[345467164,1734275456708,-637.91,0.00019997,3]
[345467165,1734275456718,-500.0,0.00019997,3]
[345467166,1734275456733,-656.59,0.00019997,3]
[345467167,1734275456743,-500.0,0.00019997,3]
[345467168,1734275456753,-205.98381263,0.00019997,3]
[345467169,1734275456762,-476.35,0.00019997,3]
[345467170,1734275456771,-500.0,0.00019997,3]
[345467171,1734275456780,-1050.92,0.00019997,3]
[345467172,1734275456789,-633.44,0.00019997,3]
[345467173,1734275456799,-500.0,0.00019997,3]
[345467174,1734275456808,-633.71,0.00019997,3]
[345467175,1734275456817,-1501.23,0.00019997,3]
[345467176,1734275456826,-1281.49,0.00019997,3]
[345467177,1734275456835,-500.0,0.00019997,3]
[345467178,1734275456845,-500.0,0.00019997,3]
[345467179,1734275456855,-500.0,0.00019997,3]
[345467180,1734275456865,-500.0,0.00019997,3]
[345467181,1734275456874,-500.0,0.00019997,3]
[345467182,1734275456883,-500.0,0.00019997,3]
[345467183,1734275456892,-500.0,0.00019997,3]
[345467184,1734275456901,-500.0,0.00019997,3]
[345467185,1734275456910,-550.04,0.00019997,3]
[345467186,1734275456920,-500.0,0.00019997,3]
[345467187,1734275456930,-500.0,0.00019997,3]
[345467188,1734275456939,-1202.85,0.00019997,3]
[345467189,1734275456949,-656.62,0.00019997,3]
[345467190,1734275456958,-1078.5,0.00019997,3]
[345467191,1734275456968,-996.23,0.00019997,3]
[345467192,1734275456985,-923.65,0.00019997,3]
[345467193,1734275456996,-4395.43,0.00019997,3]
[345467194,1734275457006,-500.0,0.00019997,3]
[345467195,1734275457015,-1029.07,0.00019997,3]
[345467196,1734275457024,-500.0,0.00019997,3]
[345467197,1734275457033,-500.0,0.00019997,3]
[345467198,1734275457042,-151.0,0.00019998,2]
[345467199,1734275457051,-151.0,0.00019998,2]
[345467200,1734275457061,-247.585747,0.00019998,2]
[345467201,1734275457071,-175.439757,0.00019998,2]
[345467202,1734275457080,-247.585747,0.00019998,2]
[345467203,1734275457089,-175.439757,0.00019998,2]
[345467204,1734275457098,-227.131496,0.00019998,2]
[345467205,1734275457107,-500.0,0.00019998,2]
[345467206,1734275457116,-500.0,0.00019998,2]
[345467207,1734275457126,-151.0,0.00019998,2]
[345467208,1734275457135,-184.477903,0.00019998,2]
[345467209,1734275457144,-184.477903,0.00019998,2]
[345467210,1734275457153,-151.0,0.00019998,2]
[345467211,1734275457163,-500.0,0.00019998,3]
[345467212,1734275457172,-500.0,0.00019998,3]
[345467213,1734275457182,-500.0,0.00019998,3]
[345467214,1734275457191,-301.13,0.00019998,3]
[345467215,1734275457200,-986.6,0.00019998,3]
[345467216,1734275457210,-986.6,0.00019998,3]
[345467217,1734275457219,-500.0,0.00019998,3]
[345467218,1734275457233,-500.0,0.00019998,3]
[345467219,1734275457243,-369.630023,0.00019998,2]
[345467220,1734275457252,-369.630023,0.00019998,2]
[345467221,1734275457261,-500.0,0.00019998,3]
[345467222,1734275457271,-500.0,0.00019998,3]
[345467223,1734275457280,-500.0,0.00019998,3]
[345467224,1734275457290,-500.0,0.00019998,3]
[345467225,1734275457300,-151.0,0.00019998,2]
[345467226,1734275457310,-151.0,0.00019998,2]
[345467227,1734275457320,-227.577776,0.00019998,2]
[345467228,1734275457329,-500.0,0.00019998,3]
[345467229,1734275457339,-500.0,0.00019998,3]
[345467230,1734275457349,-158.94199,0.00019998,2]
[345467231,1734275457359,-158.94199,0.00019998,2]
[345467232,1734275457368,-151.0,0.00019998,2]
[345467233,1734275457378,-705.896266,0.00019998,2]
[345467234,1734275457387,-865.390244,0.00019998,2]
[345467235,1734275457396,-865.390244,0.00019998,2]
[345467236,1734275457406,-151.0,0.00019998,2]
[345467237,1734275457415,-500.0,0.00019998,3]
[345467238,1734275457424,-352.1,0.00019998,3]
[345467239,1734275457434,-580.27,0.00019998,3]
[345467240,1734275457443,-580.27,0.00019998,3]
[345467241,1734275457452,-982.499852,0.00019998,2]
[345467242,1734275457461,-982.499852,0.00019998,2]
[345467243,1734275457583,-500.0,0.00019998,3]
[345467244,1734275457592,-500.0,0.00019998,3]
[345467245,1734275457602,-325.849368,0.00019998,2]
[345467246,1734275457611,-325.849368,0.00019998,2]
[345467247,1734275457624,-738.78,0.00019998,3]
[345467248,1734275457634,-738.78,0.00019998,3]
[345467249,1734275457643,-738.78,0.00019998,3]
[345467250,1734275457652,-500.0,0.00019998,3]
[345467251,1734275457661,-500.0,0.00019998,3]
[345467252,1734275457671,-500.0,0.00019998,3]
[345467253,1734275457680,-500.0,0.00019998,3]
[345467254,1734275457691,-500.0,0.00019998,3]
[345467255,1734275457700,-500.0,0.00019998,3]
[345467256,1734275457710,-500.0,0.00019998,3]
[345467257,1734275457719,-500.0,0.00019998,3]
[345467258,1734275457730,-739.7,0.00019998,3]
[345467259,1734275457739,-739.7,0.00019998,3]
[345467260,1734275457748,-790.13,0.00019998,3]
[345467261,1734275457758,-790.13,0.00019998,3]
[345467262,1734275457767,-790.13,0.00019998,3]
[345467263,1734275457777,-1032.56,0.00019998,3]
[345467264,1734275457786,-1032.56,0.00019998,3]
[345467265,1734275457796,-1032.56,0.00019998,3]
[345467266,1734275457807,-2284.183275,0.00019998,2]
[345467267,1734275457816,-2284.183275,0.00019998,2]
[345467268,1734275457825,-255.974318,0.00019998,2]
[345467269,1734275457835,-255.974318,0.00019998,2]
[345467270,1734275457845,-500.0,0.00019998,3]
[345467271,1734275457854,-500.0,0.00019998,3]
[345467272,1734275457863,-609.52725283,0.00019998,3]
[345467273,1734275457872,-500.0,0.00019998,3]
[345467274,1734275457881,-500.0,0.00019998,3]
[345467275,1734275457890,-500.0,0.00019998,3]
[345467276,1734275457900,-500.0,0.00019998,3]
[345467277,1734275457911,-500.0,0.00019998,3]
[345467278,1734275457921,-500.0,0.00019998,3]
[345467279,1734275457931,-201.25817,0.00019998,2]
[345467280,1734275457940,-201.25817,0.00019998,2]
[345467281,1734275457949,-500.0,0.00019998,3]
[345467282,1734275457959,-500.0,0.00019998,3]
[345467283,1734275457970,-500.0,0.00019998,3]
[345467284,1734275457982,-500.0,0.00019998,3]
[345467285,1734275457992,-500.0,0.00019998,3]
[345467286,1734275458002,-500.0,0.00019998,3]
[345467287,1734275458011,-500.0,0.00019998,3]
[345467288,1734275458021,-500.0,0.00019998,3]
[345467289,1734275458031,-2581.38,0.00019998,3]
[345467290,1734275458041,-2581.38,0.00019998,3]
[345467291,1734275458050,-2581.38,0.00019998,3]
[345467292,1734275458059,-762.22,0.00019998,3]
[345467293,1734275458068,-762.22,0.00019998,3]
[345467294,1734275458079,-500.0,0.00019998,3]
[345467295,1734275458090,-500.0,0.00019998,3]
[345467296,1734275458100,-500.0,0.00019998,3]
[345467297,1734275458111,-500.0,0.00019998,3]
[345467298,1734275458121,-500.0,0.00019998,3]
[345467299,1734275458131,-500.0,0.00019998,3]
[345467300,1734275458141,-500.0,0.00019998,3]
[345467301,1734275458151,-500.0,0.00019998,3]
[345467302,1734275458162,-1205.16,0.00019998,3]
[345467303,1734275458172,-1205.16,0.00019998,3]
[345467304,1734275458182,-1205.16,0.00019998,3]
[345467305,1734275458191,-500.0,0.00019998,3]
[345467306,1734275458200,-500.0,0.00019998,3]
[345467307,1734275458210,-528.88,0.00019998,3]
[345467308,1734275458221,-500.0,0.00019998,3]
[345467309,1734275458232,-528.88,0.00019998,3]
[345467310,1734275458241,-504.36,0.00019998,3]
[345467311,1734275458251,-528.88,0.00019998,3]
[345467312,1734275458260,-504.36,0.00019998,3]
[345467313,1734275458270,-504.36,0.00019998,3]
[345467314,1734275458281,-500.0,0.00019998,3]
[345467315,1734275458291,-500.0,0.00019998,3]
[345467316,1734275458301,-500.0,0.00019998,3]
[345467317,1734275458311,-1099.021982,0.00019998,2]
[345467318,1734275458322,-500.0,0.00019998,3]
[345467319,1734275458333,-500.0,0.00019998,3]
[345467320,1734275458343,-1099.021982,0.00019998,2]
[345467321,1734275458352,-523.08,0.00019998,3]
[345467322,1734275458362,-500.0,0.00019998,3]
[345467323,1734275458371,-500.0,0.00019998,3]
[345467324,1734275458381,-566.0,0.00019998,3]
[345467325,1734275458390,-566.0,0.00019998,3]
[345467326,1734275458399,-566.0,0.00019998,3]
[345467327,1734275458409,-637.91,0.00019998,3]
[345467328,1734275458419,-637.91,0.00019998,3]
[345467329,1734275458428,-637.91,0.00019998,3]
[345467330,1734275458441,-500.0,0.00019998,3]
[345467331,1734275458451,-500.0,0.00019998,3]
[345467332,1734275458461,-500.0,0.00019998,3]
[345467333,1734275458471,-9000.0,0.00019998,2]
[345467334,1734275458484,-656.59,0.00019998,3]
[345467335,1734275458495,-656.59,0.00019998,3]
[345467336,1734275458504,-9000.0,0.00019998,2]
[345467337,1734275458513,-151.0,0.00019998,2]
[345467338,1734275458524,-500.0,0.00019998,3]
[345467339,1734275458534,-500.0,0.00019998,3]
[345467340,1734275458544,-500.0,0.00019998,3]
[345467341,1734275458555,-151.0,0.00019998,2]
[345467342,1734275458566,-500.0,0.00019998,3]
[345467343,1734275458576,-500.0,0.00019998,3]
[345467344,1734275458588,-220.43,0.00019998,3]
[345467345,1734275458598,-1050.92,0.00019998,3]
[345467346,1734275458608,-1050.92,0.00019998,3]
[345467347,1734275458619,-633.44,0.00019998,3]
[345467348,1734275458628,-633.44,0.00019998,3]
[345467349,1734275458638,-633.44,0.00019998,3]
[345467350,1734275458653,-500.0,0.00019998,3]
[345467351,1734275458662,-500.0,0.00019998,3]
[345467352,1734275458671,-500.0,0.00019998,3]
[345467353,1734275458680,-633.71,0.00019998,3]
[345467354,1734275458689,-633.71,0.00019998,3]
[345467355,1734275458698,-633.71,0.00019998,3]
[345467356,1734275458707,-1501.23,0.00019998,3]
[345467357,1734275458716,-1501.23,0.00019998,3]
[345467358,1734275458725,-1281.49,0.00019998,3]
[345467359,1734275458735,-1501.23,0.00019998,3]
[345467360,1734275458745,-1281.49,0.00019998,3]
[345467361,1734275458754,-500.0,0.00019998,3]
[345467362,1734275458763,-500.0,0.00019998,3]
[345467363,1734275458772,-500.0,0.00019998,3]
[345467364,1734275458781,-500.0,0.00019998,3]
[345467365,1734275458791,-500.0,0.00019998,3]
[345467366,1734275458800,-500.0,0.00019998,3]
[345467367,1734275458809,-500.0,0.00019998,3]
[345467368,1734275458818,-500.0,0.00019998,3]
[345467369,1734275458828,-500.0,0.00019998,3]
[345467370,1734275458837,-504.16,0.00019998,3]
[345467371,1734275458847,-500.0,0.00019998,3]
[345467372,1734275458856,-500.0,0.00019998,3]
[345467373,1734275458865,-500.0,0.00019998,3]
[345467374,1734275458875,-500.0,0.00019998,3]
[345467375,1734275458885,-500.0,0.00019998,3]
[345467376,1734275458894,-500.0,0.00019998,3]
[345467377,1734275458904,-500.0,0.00019998,3]
[345467378,1734275458913,-500.0,0.00019998,3]
[345467379,1734275458922,-500.0,0.00019998,3]
[345467380,1734275458931,-500.0,0.00019998,3]
[345467381,1734275458940,-500.0,0.00019998,3]
[345467382,1734275458949,-550.04,0.00019998,3]
[345467383,1734275458959,-550.04,0.00019998,3]
[345467384,1734275458969,-550.04,0.00019998,3]
[345467385,1734275458980,-500.0,0.00019998,3]
[345467386,1734275458990,-500.0,0.00019998,3]
[345467387,1734275459000,-500.0,0.00019998,3]
[345467388,1734275459009,-500.0,0.00019998,3]
[345467389,1734275459019,-500.0,0.00019998,3]
[345467390,1734275459028,-172.033086,0.00019998,2]
[345467391,1734275459038,-500.0,0.00019998,3]
[345467392,1734275459047,-1202.85,0.00019998,3]
[345467393,1734275459057,-1202.85,0.00019998,3]
[345467394,1734275459067,-172.033086,0.00019998,2]
[345467395,1734275459076,-656.62,0.00019998,3]
[345467396,1734275459086,-656.62,0.00019998,3]
[345467397,1734275459095,-656.62,0.00019998,3]
[345467398,1734275459104,-1078.5,0.00019998,3]
[345467399,1734275459115,-1078.5,0.00019998,3]
[345467400,1734275459125,-1078.5,0.00019998,3]
[345467401,1734275459135,-996.23,0.00019998,3]
[345467402,1734275459145,-996.23,0.00019998,3]
[345467403,1734275459154,-996.23,0.00019998,3]
[345467404,1734275459163,-923.65,0.00019998,3]
[345467405,1734275459173,-923.65,0.00019998,3]
[345467406,1734275459183,-923.65,0.00019998,3]
[345467407,1734275459192,-4395.43,0.00019998,3]
[345467408,1734275459202,-4395.43,0.00019998,3]
[345467409,1734275459212,-151.0,0.00019998,2]
[345467410,1734275459222,-511.194057,0.00019998,2]
[345467411,1734275459233,-500.0,0.00019998,3]
[345467412,1734275459243,-500.0,0.00019998,3]
[345467413,1734275459252,-1029.07,0.00019998,3]
[345467414,1734275459262,-500.0,0.00019998,3]
[345467415,1734275459272,-1029.07,0.00019998,3]
[345467416,1734275459282,-1029.07,0.00019998,3]
[345467417,1734275459291,-500.0,0.00019998,3]
[345467418,1734275459301,-500.0,0.00019998,3]
[345467419,1734275459311,-580.67,0.00019998,3]
[345467420,1734275459320,-511.194057,0.00019998,2]
[345467421,1734275459330,-500.0,0.00019998,3]
[345467422,1734275459340,-500.0,0.00019998,3]
[345467423,1734275459348,-198.211008,0.00019998,2]
[345467424,1734275459358,-1021.36706913,0.00019999,5]
[345467425,1734275459367,-151.0,0.00019999,2]
[345467426,1734275459378,-151.0,0.00019999,2]
[345467427,1734275459388,-151.0,0.00019999,2]
[345467428,1734275459397,-247.585747,0.00019999,2]
[345467429,1734275459407,-247.585747,0.00019999,2]
[345467430,1734275459417,-175.439757,0.00019999,2]
[345467431,1734275459426,-175.439757,0.00019999,2]
[345467432,1734275459436,-247.585747,0.00019999,2]
[345467433,1734275459446,-247.585754,0.00019999,2]
[345467434,1734275459456,-175.439757,0.00019999,2]
[345467435,1734275459465,-175.439763,0.00019999,2]
[345467436,1734275459474,-500.0,0.00019999,2]
[345467437,1734275459486,-500.0,0.00019999,2]
[345467438,1734275459495,-500.0,0.00019999,2]
[345467439,1734275459504,-500.0,0.00019999,2]
[345467440,1734275459513,-500.0,0.00019999,2]
[345467441,1734275459523,-500.0,0.00019999,2]
[345467442,1734275459532,-184.477903,0.00019999,2]
[345467443,1734275459541,-184.477903,0.00019999,2]
[345467444,1734275459551,-184.477903,0.00019999,2]
[345467445,1734275459560,-184.477899,0.00019999,2]
[345467446,1734275459570,-500.0,0.00019999,3]
[345467447,1734275459579,-500.0,0.00019999,3]
[345467448,1734275459589,-500.0,0.00019999,3]
[345467449,1734275459597,-378.49,0.00019999,3]
[345467450,1734275459607,-986.6,0.00019999,3]
[345467451,1734275459618,-986.6,0.00019999,3]
[345467452,1734275459628,-986.6,0.00019999,3]
[345467453,1734275459637,-986.6,0.00019999,3]
[345467454,1734275459646,-986.6,0.00019999,3]
[345467455,1734275459655,-986.6,0.00019999,3]
[345467456,1734275459664,-986.6,0.00019999,3]
[345467457,1734275459673,-986.6,0.00019999,3]
[345467458,1734275459683,-986.6,0.00019999,3]
[345467459,1734275459692,-986.6,0.00019999,3]
[345467460,1734275459701,-986.6,0.00019999,3]
[345467461,1734275459711,-986.6,0.00019999,3]